Cogmind - Beta 16 @@@ ROGUE MODE // 2025.11.02 @ 09:54:04 Player: C0-2MO Result: Destroyed by G-34 Mercenary with Small Laser Performance ------------- Evolutions (0) 0 Regions Visited (1) 200 Robots Destroyed (13) 65 Value Destroyed (313) 313 Prototype IDs (0) 0 Alien Tech Used (0) 0 Bonus (0) 0 TOTAL SCORE: 578 Bonus ------- None Cogmind --------- Core Integrity 0/250 Matter 288/300 Energy 98/100 System Corruption 0% Temperature Cool (54) Movement Core (400) Ox7 Location -10/Materials Parts ------- > --- POWER (1) -------- (None) > --- PROPULSION (2) --- (None) > --- UTILITY (2) ------ Large Storage Unit Seismic Detector > --- WEAPON (2) ------- Medium Laser Light Assault Rifle > --- INVENTORY (15) --- Ion Engine Light Ion Engine Light Treads Compact Wheel Hover Unit Small Storage Unit Hacking Suite Small Laser Light Assault Rifle Grenade Launcher Mining Laser Mining Claw Peak State ------------ > --- POWER ------------ (None) > --- PROPULSION ------- Light Treads Wheel > --- UTILITY ---------- Large Storage Unit Seismic Detector > --- WEAPON ----------- Light Assault Rifle Light Assault Rifle > --- INVENTORY -------- Ion Engine Light Ion Engine Light Treads Compact Wheel Hover Unit Small Storage Unit Hacking Suite Welding Torch [Rating: 7] Favorites ----------- Power None Propulsion Light Treads Treads Light Treads Wheel Wheel Utility Seismic Detector Device Seismic Detector Storage Large Storage Unit Weapon Light Assault Rifle Energy Gun Medium Laser Ballistic Gun Light Assault Rifle Special Weapon Mining Laser Slashing Weapon Mining Claw Build | -11 -10 ------- Run | Yrd Mat Slots Evolved . | . . Power . | . . Propulsion . | . . Utility . | . . Weapon . | . . Parts Attached 11 | 6 5 Power . | . . Engine . | . . Core . | . . Reactor . | . . Propulsion 3 | 2 1 Treads 1 | 1 . Leg . | . . Wheel 2 | 1 1 Hover . | . . Flight . | . . Utility 3 | 2 1 Device 1 | 1 . Storage 2 | 1 1 Processor . | . . Hackware . | . . Protection . | . . Artifact . | . . Weapon 5 | 2 3 Energy Gun 1 | . 1 Energy Cannon . | . . Ballistic Gun 2 | 2 . Ballistic Cannon . | . . Launcher . | . . Special Weapon 1 | . 1 Impact Weapon . | . . Slashing Weapon 1 | . 1 Piercing Weapon . | . . Special Melee Weapon . | . . Unidentified Prototypes . | . . Parts Lost 3 | . 3 Power . | . . Propulsion 3 | . 3 Utility . | . . Weapon . | . . Highest Loss Streak 2 | . 2 To Critical Strikes . | . . Average Backups 8 | 2 9 Power 1 | . 1 Propulsion 2 | 1 2 Utility 1 | . 1 Weapon 2 | . 2 Tool/Special . | . . Unused Backups 9 | . 9 Power 2 | . 2 Propulsion 3 | . 3 Utility 1 | . 1 Weapon 2 | . 2 Tool/Special 1 | . 1 Average Slot Usage (%) 84 | . 84 Treads 14 | . 14 Wheel 13 | . 13 Device 14 | . 14 Storage 14 | . 14 Energy Gun 11 | . 11 Ballistic Gun 13 | . 13 Slashing Weapon 1 | . 1 Peak Build Rating 7 | 6 7 Average Rating 6 | 4 6 On Entrance 3 | . 6 Avg Prop Armor Cover (%) 15 | 17 15 Naked Turns . | . . Heaviest Build 25 | 8 25 Greatest Support 20 | 20 16 Greatest Overweight (x) 2 | . 2 Average Overweight (x) 1 | . 1 Largest Inventory Capacity 15 | 8 15 Average Capacity 14 | 6 14 Most Carried 12 | 3 12 Average Carried 9 | 2 9 Final Capacity 15 | 8 15 Final Carried 12 | 3 12 Class Distribution -------------------- 100% | Mutant Dominant Class ---------------- Mutant | -10/Materials Resources | -11 -10 ----------- Run | Yrd Mat Matter Collected 377 | 278 99 Remotely . | . . Salvage Created 506 | 94 412 Parts 24 | 5 19 Haulers Intercepted 2 | . 2 Recyclers Shooed . | . . Parts Field Recycled . | . . Retrieved Matter . | . . Parts Self-Destructed . | . . Prevented . | . . Parts Restored . | . . Kills | -11 -10 ------- Run | Yrd Mat Combat Hostiles Destroyed 7 | . 7 Guns 6 | . 6 Classes Destroyed 5 | 2 3 Tunneler 1 | 1 . Hauler 2 | . 2 Recycler 1 | 1 . Operator 2 | . 2 Grunt 7 | . 7 Best Kill Streak 2 | 1 2 Combat Bots Only 2 | . 2 Max Kills in Single Turn 1 | 1 1 Gunslinging . | . . Exploded . | . . Melee . | . . Uniques/NPCs Destroyed . | . . Combat | -11 -10 -------- Run | Yrd Mat Hostile Shots Fired 56 | . 56 Missed 8 | . 8 Hits 48 | . 48 Projectile 48 | . 48 Critical Strikes 1 | . 1 Damage Taken 609 | . 609 Core 253 | . 253 Absorbed by Shields . | . . Core Remaining (%) 100 | 100 . Volleys Fired 69 | 9 60 Largest 2 | 2 2 Hottest 100 | 40 100 Shots Fired 133 | 18 115 Gun 128 | 18 110 Cannon . | . . Launcher . | . . Special 5 | . 5 Kinetic 74 | 18 56 Thermal 59 | . 59 Explosive . | . . Electromagnetic . | . . Robot Hit Streak 11 | 5 11 Robot Miss Streak 4 | 3 4 Penetration Max . | . . Secondary Targets 1 | . 1 Max Gunslinging Chain 1 | . 1 Shots Hit Robots 82 | 10 72 Core Hits 30 | 4 26 Critical Kills . | . . Critical Parts Destroyed 1 | 1 . Critical Strikes 5 | 1 4 Burn 4 | . 4 Destroy 1 | 1 . Melee Attacks 10 | . 10 Impact . | . . Slashing 10 | . 10 Piercing . | . . Sneak Attacks 1 | . 1 Combat Hostiles . | . . Follow-up Attacks . | . . Damage Inflicted 873 | 79 794 Guns 764 | 79 685 Cannons . | . . Explosions . | . . Melee 109 | . 109 Ramming . | . . Kinetic 346 | 79 267 Thermal 418 | . 418 Explosive . | . . Electromagnetic . | . . Impact . | . . Slashing 109 | . 109 Piercing . | . . Highest Corruption . | . . Average Corruption . | . . Corruption Purged . | . . Corruption Blocked . | . . Overload Shots . | . . Overflow Damage 28 | . 28 Projectiles . | . . Explosions . | . . Melee 28 | . 28 Knockbacks . | . . Impact . | . . Kinetic . | . . Secondary . | . . Self-Inflicted Damage . | . . Shots . | . . Rammed . | . . Targets Rammed . | . . Kicked . | . . Crushed . | . . Highest Temperature 147 | . 147 Average Temperature 41 | . 41 Received Heat Transfer 357 | . 357 Siege Activations . | . . Martial Activations . | . . Shielding Activations . | . . Robots Disrupted . | . . Combat Hostiles . | . . Robots Corrupted . | . . Combat Hostiles . | . . Parts Fried . | . . Impact Corruptions . | . . Robots Melted 1 | . 1 Combat Hostiles 1 | . 1 Parts Melted 2 | . 2 Heat Transferred 1517 | . 1517 Parts Sabotaged . | . . Parts Stolen . | . . Parts Stripped . | . . Power Chain Reactions . | . . Alert | -11 -10 ------- Run | Yrd Mat Maximum Alert Level . | . . Low Security (%) 100 | 100 100 Level 1 . | . . Level 2 . | . . Level 3 . | . . Level 4 . | . . Level 5 . | . . High Security . | . . Max Security . | . . Peak Influence 57 | 5 57 Initial . | . . Average 12 | 1 13 Influence Increases 324 | 10 314 Destroy 0b10 Robot/C 140 | . 140 Destroy 0b10 Robot/NC 30 | 10 20 Destroy Leader 44 | . 44 Successful Hack 27 | . 27 Select Force Hacks 60 | . 60 Destroy Structure 8 | . 8 Lose Combat Pursuer 15 | . 15 Influence Decreases 304 | 10 294 Time Decay 290 | 10 280 Lost Part 14 | . 14 Squads Dispatched 4 | . 4 Investigation 2 | . 2 Extermination . | . . Reinforcement 2 | . 2 Assault . | . . Garrison . | . . Intercept . | . . Searches Triggered . | . . Construction Impeded . | . . Haulers Reinforced . | . . Active Scanning Responses . | . . Cargo Convoy Interrupts . | . . Stealth | -11 -10 --------- Run | Yrd Mat Distress Signals 2 | . 2 Communications Jammed . | . . Distress Signals . | . . Times Spotted 17 | . 17 Peak Tracking Total 4 | . 4 Tactical Retreats 1 | . 1 Traps | -11 -10 ------- Run | Yrd Mat Traps Triggered . | . . Indirectly . | . . Trap Hack Attempts . | . . Triggered . | . . Disarmed . | . . Reprogrammed . | . . Reused . | . . Traps Extracted . | . . Installed . | . . Triggered . | . . Machines | -11 -10 ---------- Run | Yrd Mat Machines Disabled . | . . Max in Single Turn . | . . Machines Repaired . | . . Machines Dismantled . | . . Machines Sabotaged . | . . Overloaded Fab Kills . | . . Hacking | -11 -10 --------- Run | Yrd Mat Machines Accessed 7 | . 7 Terminals 5 | . 5 Fabricators . | . . Repair Stations . | . . Recycling Units 2 | . 2 Scanalyzers . | . . Garrison Access . | . . Total Hacks 18 | . 18 Successful 12 | . 12 Failed 6 | . 6 Catastrophic . | . . Database Lockouts . | . . Manual 18 | . 18 Terminals 16 | . 16 Fabricators . | . . Repair Stations . | . . Recycling Units 2 | . 2 Scanalyzers . | . . Garrison Access . | . . Terminal Hacks 3 | . 3 Robot Analysis 1 | . 1 Terminal Index 1 | . 1 Zone Layout 1 | . 1 Fabricator Hacks . | . . Repair Station Hacks . | . . Recycling Unit Hacks . | . . Scanalyzer . | . . Garrison Access Hacks . | . . Unauthorized Hacks 9 | . 9 Terminals 7 | . 7 Botnet 3 | . 3 Skim 4 | . 4 Fabricators . | . . Repair Stations . | . . Recycling Units 2 | . 2 Tunnel 2 | . 2 Scanalyzers . | . . Garrison Access . | . . Data Cores Recovered 1 | . 1 Used 1 | . 1 Hacking Detections 5 | . 5 Full Trace Events . | . . Feedback Events . | . . Feedback Blocked . | . . Robot Schematics Acquired . | . . Robots Built . | . . Authchips . | . . Time . | . . Total Robot Build Rating . | . . Part Schematics Acquired . | . . Parts Built . | . . Authchips . | . . Time . | . . Total Part Build Rating . | . . Part Studies Acquired . | . . Parts Repaired . | . . Time . | . . Parts Recycled . | . . Recycled Matter . | . . Retrieved Matter . | . . Retrieved Components . | . . Parts Scanalyzed . | . . Part Schematics Acquired . | . . Parts Damaged . | . . Bothacking | -11 -10 ------------ Run | Yrd Mat Used RIF Installer . | . . Robots Hacked . | . . Non-combat . | . . Combat . | . . Robot Hacks Applied . | . . Relay Couplers Released . | . . Fabnet Peak Effective % . | . . Robots Rewired . | . . Allies Hacked . | . . Hacks Repelled . | . . Allies | -11 -10 -------- Run | Yrd Mat Total Allies . | . . Largest Group . | . . Highest-Rated Group . | . . Highest-Rated Ally . | . . Total Orders . | . . Ally Attacks . | . . Total Damage . | . . Kills . | . . Allies Corrupted . | . . Allies Melted . | . . Intel | -11 -10 ------- Run | Yrd Mat Active Infowar (turns) 950 | 14 936 Seismic 950 | 14 936 Robot Analysis Total 1 | . 1 Derelict Logs Recovered . | . . Drone Launches . | . . Drone Recoveries . | . . Exploration | -11 -10 ------------- Run | Yrd Mat Turns Passed 1026 | 90 936 Spaces Moved 609 | 68 541 Core 1 | 1 . Treads 1 | 1 . Legs . | . . Wheels 607 | 66 541 Hover . | . . Flight . | . . Fastest Speed 50 | 50 80 Average Speed 107 | 80 111 Slowest Speed 160 | 160 115 Overloaded Moves . | . . Propulsion Burnouts . | . . Robots Hopped . | . . Potential Cave-ins . | . . Cave-ins Triggered . | . . Exploration Rate (%) 49 | 5 93 Regions Visited 1 Branch Regions . Pre-discovered Areas 2 | . 2 Known Exits Taken . | . . Unknown Exits Taken 1 | 1 . Scrap Searched . | . . Spaces Dug 8 | . 8 Terrain Destroyed 8 | . 8 Melee 3 | . 3 Projectile 5 | . 5 AOE . | . . Terrain Rammed . | . . Walls Destroyed . | . . Machines Disabled . | . . Actions | -11 -10 --------- Run | Yrd Mat Total 824 | 85 739 Wait 111 | . 111 Move 608 | 67 541 Hop . | . . Pick Up 11 | 3 8 Fast Attach 7 | 6 1 Attach 1 | . 1 Detach 1 | . 1 Swap 5 | . 5 Drop 1 | . 1 Fire 69 | 9 60 Melee 10 | . 10 Ram . | . . Kick . | . . Crush . | . . Escape Stasis . | . . Rewire . | . . Trap . | . . Miscellaneous . | . . Route ------- -11/Scrapyard -10/Materials (discovered 5 exits: [*Mat x3] / [*Min x2]) History --------- Turn | Location | Event 31 | -11/Scrapyard | Discovered new exit (range 15) 91 | -11/Scrapyard | Entered Materials 299 | -10/Materials | Discovered new exit (range 17) 304 | -10/Materials | Build established: Mutant 469 | -10/Materials | Discovered new exit (range 3) 532 | -10/Materials | Core integrity fell below 50% 587 | -10/Materials | Discovered new exit (range 13) 725 | -10/Materials | Discovered new exit (range 10) 808 | -10/Materials | Discovered new exit (range 16) 1002 | -10/Materials | Core integrity fell below 20% 1027 | -10/Materials | Destroyed by G-34 Mercenary with Small Laser Last Messages --------------- SECURING TERMINAL." 00803_ ALERT: Hostiles spotted, dispatching reinforcements to Terminal M003. 00808_ EXIT=FOUND 00827_ O-16 Technician suffers critical hit (Burn). 00893_ U-05 Engineer builds a Wall. 00908_ Sneak attack on O-16 Technician. 00908_ Destroyed Hover Unit. 00908_ O-16 Technician destroyed. 00911_ Acquired 15 matter. 00926_ G-34 Mercenary Sml. Laser ripped off. 00953_ U-05 Engineer builds a Wall. 00954_ K-01 Serf cleans the Repair Station. 00966_ U-05 Engineer builds a Wall. 01018_ Com. Wheel destroyed. 01024_ G-34 Mercenary destroyed. 01024_ Switching to secondary target: G-34 Mercenary. 01025_ Lgt. Treads destroyed. Map ----- +----------------------------------------------------+ | | | | | ?????????????????????????????????????????????????? | | ?????????????????????????????????????????????????? | | ??###???????????????????########?????????????????? | | ### ###????????????????# #?????????????????? | | #? ??#######????????# ""#?????????????????? | | #### #### #????????# Y"#?????????????????? | | # + #####????# ""#?????????????????? | | #### " # #????# #?????????????????? | | #??# "" # < #????# #?????????????????? | | #??# "" # #????####+###?????????????????? | | #??# """ # ######## #?????#####????????? | | #??#="" # T #????##"""##???????? | | ##+##+####!""" # ######## [ #???##"!!!"##??????? | | #??? ##!""" # #??????##%##???#"" ""#??????? | | #??? ##%""" # #???????# #????# #??????? | | #??? ##!!" # ######### ##???# < #??????? | | #??? ##!!=* # # # #???# #??????? | | #?? ####+### # + #???# #??????? | | #?? ** # # # #???## ##??????? | | #? ** + # # #????## ########## | | ## ** # # # ####### # ! | | + ############ # + """ | | # ! #??????????# %+= # """ | | # #??????????# @# T """ # """ | | #? #??????????# # """ # "T" | | #? #??????????# # """ # """ | | #??#####??????????# k g# # | | #?????????????????# + ########## | | ##????????????????# # ## | | #????????????????##+######+###+#+# # """ | | #?????????????????# #?## # # """ | | #?????????????????# #??# """ + " +/ """ | | #?????????????????# #??# """ # # | | #?????????????????# #??# """ # # | | ########???????????# #??# """#######| !!% | | # | #???????????#!#??#[ R"##????# !! | | + #???#########[#??# """#?????# !! | | # + =]!%!#??# #?????######### | | # **! #############[#??###########?????????????? | | # **! #???????????# ############################ | | # *!! #??????######=% ^ | | ########??????# = ## ################### | | #????########## ## #?????????????????# """ | | #????# ## ## #?????????????????# """"" | | ####### "T" ##! ## #????????########## """"" | | [[[ # ## ## #????????# # """"" | | [[ # ## / #????????# """# ^^""" | | [[ # """ ## # #????????# """# | +----------------------------------------------------+ Best States ------------- Heat Dissipation 25 Energy Generation 5 Energy Capacity 100 Matter Stores 300 Matter Capacity 300 Sight Range 16 Terrain Scan Density 10 Evasion (%) 44 Item Schematics ----------------- None Robot Schematics ------------------ None Fabricated ------------ Nothing Repaired ---------- Nothing Studied --------- None Alien Tech Used ----------------- None Achievements -------------- None Challenges ------------ None Game ------ Seed ElectronDrainedScrap Manual? 0 Play Time 00:10:14 Cumulative 592.4 hours Start 2025.11.02 @ 09:45:49 End 2025.11.02 @ 09:54:04 Sessions 1 Manual Loads 0 Difficulty Rogue Special Mode None Game No. 247 Rogue 247 Adventurer 0 Explorer 0 Win Type - Total 43 Types 19/3/6/2/6/1/0/3/0/3 Lore% 96 Gallery% 88 Achievement% 71 Wizard Run 0 Options --------- Layout 1 ASCII 0 Keyboard 0 Movement Numpad Keybinds 0 Fullscreen 1 Font 24/Smallcaps Map View 50x35 Zoom Use 0% Tactical HUD 1 Map Filters NONE Filters NONE Steam 1 RUN: 952287ba-6063-4265-b842-c6b621d4fd68